[Event "Titled Tuesday Blitz December 14 2021"]
[White "Jobava, Baadur"]
[Black "Samsonkin, Artiom"]
[WhiteFideId "13601520"]
[BlackFideId "13503111"]
[WhiteElo "2689"]
[BlackElo "2513"]
[Result "1-0"]
[Round "10"]
[TimeControl "180+1"]
[Date "2021.12.14"]
[WhiteClock "0:01:39"]
[BlackClock "0:00:10"]

1. b3 {[%clk 0:03:00]}  e5 {[%clk 0:02:59]} 2. Bb2 {[%clk 0:03:01]}  Nc6 {[%clk 0:02:59]} 3. Nf3 {[%clk 0:03:02]}  d6 {[%clk 0:03:00]} 4. d4 {[%clk 0:03:02]}  g6 {[%clk 0:02:57]} 5. dxe5 {[%clk 0:03:02]}  Bg7 {[%clk 0:02:57]} 6. Nc3 {[%clk 0:03:00]}  Nxe5 {[%clk 0:02:44]} 7. Nxe5 {[%clk 0:03:00]}  Bxe5 {[%clk 0:02:41]} 8. Qd2 {[%clk 0:03:00]}  Ne7 {[%clk 0:02:39]} 9. e4 {[%clk 0:02:59]}  Bg7 {[%clk 0:02:35]} 10. f4 {[%clk 0:02:58]}  b6 {[%clk 0:02:28]} 11. Bb5+ {[%clk 0:02:57]}  Bd7 {[%clk 0:02:28]} 12. Bxd7+ {[%clk 0:02:52]}  Qxd7 {[%clk 0:02:29]} 13. O-O-O {[%clk 0:02:52]}  O-O-O {[%clk 0:02:25]} 14. Qe2 {[%clk 0:02:52]}  Qc6 {[%clk 0:02:17]} 15. Rd3 {[%clk 0:02:49]}  Rhe8 {[%clk 0:02:15]} 16. Rhd1 {[%clk 0:02:48]}  f5 {[%clk 0:02:08]} 17. Re1 {[%clk 0:02:32]}  fxe4 {[%clk 0:02:04]} 18. Qxe4 {[%clk 0:02:33]}  Nd5 {[%clk 0:01:51]} 19. Nxd5 {[%clk 0:02:22]}  Bxb2+ {[%clk 0:01:48]} 20. Kxb2 {[%clk 0:02:22]}  Rxe4 {[%clk 0:01:48]} 21. Rxe4 {[%clk 0:02:22]}  Kb8 {[%clk 0:01:43]} 22. Rc4 {[%clk 0:02:22]}  Qe8 {[%clk 0:01:33]} 23. Rxc7 {[%clk 0:02:21]}  Rc8 {[%clk 0:01:30]} 24. Rxc8+ {[%clk 0:02:16]}  Qxc8 {[%clk 0:01:25]} 25. g3 {[%clk 0:02:15]}  Qe6 {[%clk 0:01:24]} 26. Rd2 {[%clk 0:02:15]}  h5 {[%clk 0:01:23]} 27. c4 {[%clk 0:02:14]}  Kb7 {[%clk 0:01:21]} 28. a4 {[%clk 0:02:15]}  a6 {[%clk 0:01:21]} 29. Kc3 {[%clk 0:02:15]}  Qe1 {[%clk 0:01:20]} 30. Kc2 {[%clk 0:02:12]}  Qe4+ {[%clk 0:01:18]} 31. Kb2 {[%clk 0:02:10]}  Qe1 {[%clk 0:01:19]} 32. Rc2 {[%clk 0:02:07]}  Qe4 {[%clk 0:01:15]} 33. Nc3 {[%clk 0:02:05]}  Qd4 {[%clk 0:01:11]} 34. Re2 {[%clk 0:02:06]}  Kc6 {[%clk 0:01:08]} 35. Kc2 {[%clk 0:02:06]}  Qg1 {[%clk 0:01:08]} 36. Nd5 {[%clk 0:02:05]}  Qa1 {[%clk 0:01:04]} 37. Nb4+ {[%clk 0:02:04]}  Kc5 {[%clk 0:00:46]} 38. Nxa6+ {[%clk 0:02:03]}  Kd4 {[%clk 0:00:46]} 39. Rd2+ {[%clk 0:02:01]}  Ke4 {[%clk 0:00:47]} 40. Nb4 {[%clk 0:02:00]}  Qa3 {[%clk 0:00:42]} 41. Nd3 {[%clk 0:01:49]}  Ke3 {[%clk 0:00:33]} 42. Nb2 {[%clk 0:01:49]}  Qc5 {[%clk 0:00:27]} 43. Nd1+ {[%clk 0:01:48]}  Kf3 {[%clk 0:00:27]} 44. Nc3 {[%clk 0:01:49]}  Qf5+ {[%clk 0:00:26]} 45. Kb2 {[%clk 0:01:48]}  Ke3 {[%clk 0:00:26]} 46. Kc1 {[%clk 0:01:47]}  Qh3 {[%clk 0:00:26]} 47. Nd5+ {[%clk 0:01:48]}  Ke4 {[%clk 0:00:26]} 48. Kc2 {[%clk 0:01:45]}  Qf1 {[%clk 0:00:22]} 49. Nxb6 {[%clk 0:01:44]}  Qa1 {[%clk 0:00:18]} 50. Nd5 {[%clk 0:01:44]}  Qa2+ {[%clk 0:00:18]} 51. Kc3 {[%clk 0:01:44]}  Qa1+ {[%clk 0:00:18]} 52. Kb4 {[%clk 0:01:44]}  Qe1 {[%clk 0:00:18]} 53. Nc3+ {[%clk 0:01:44]}  Kf5 {[%clk 0:00:16]} 54. Re2 {[%clk 0:01:45]}  Qg1 {[%clk 0:00:16]} 55. a5 {[%clk 0:01:45]}  Qc5+ {[%clk 0:00:16]} 56. Ka4 {[%clk 0:01:46]}  Qc6+ {[%clk 0:00:17]} 57. Nb5 {[%clk 0:01:46]}  Qf3 {[%clk 0:00:16]} 58. Nxd6+ {[%clk 0:01:45]}  Kg4 {[%clk 0:00:15]} 59. Rd2 {[%clk 0:01:44]}  Qc3 {[%clk 0:00:14]} 60. Ne4 {[%clk 0:01:42]}  Qa1+ {[%clk 0:00:12]} 61. Kb4 {[%clk 0:01:41]}  Qe1 {[%clk 0:00:12]} 62. Nf2+ {[%clk 0:01:39]}  Kf3 {[%clk 0:00:11]} 63. Kc3 {[%clk 0:01:40]}  Qc1+ {[%clk 0:00:10]} 64. Rc2 {[%clk 0:01:38]}  Qe1+ {[%clk 0:00:10]} 65. Kb2 {[%clk 0:01:39]}  Qxa5 {[%clk 0:00:10]} 66. Nd3 {[%clk 0:01:39]}  Ke3 {[%clk 0:00:10]} 67. Ne5 {[%clk 0:01:39]}  Qa7 {[%clk 0:00:10]} 68. c5 {[%clk 0:01:39]} 1-0


[Site "https://www.chess.com"]

[Event "Titled Tuesday Blitz December 14 2021"]
[White "Kanyamarala, Tarun"]
[Black "Petrovskyi, Vadym"]
[WhiteFideId "45004714"]
[BlackFideId "14165210"]
[WhiteElo "2077"]
[BlackElo "2377"]
[Result "0-1"]
[Round "10"]
[TimeControl "180+1"]
[Date "2021.12.14"]
[WhiteClock "0:00:16"]
[BlackClock "0:01:04"]

1. d4 {[%clk 0:03:00]}  Nf6 {[%clk 0:03:00]} 2. c4 {[%clk 0:03:00]}  e6 {[%clk 0:03:00]} 3. Nc3 {[%clk 0:03:00]}  d5 {[%clk 0:03:00]} 4. cxd5 {[%clk 0:02:59]}  exd5 {[%clk 0:03:00]} 5. Bg5 {[%clk 0:02:59]}  Be7 {[%clk 0:03:00]} 6. e3 {[%clk 0:02:59]}  O-O {[%clk 0:03:00]} 7. Bd3 {[%clk 0:02:59]}  c6 {[%clk 0:03:01]} 8. h3 {[%clk 0:02:57]}  Nbd7 {[%clk 0:03:01]} 9. Nf3 {[%clk 0:02:57]}  Re8 {[%clk 0:03:01]} 10. Qc2 {[%clk 0:02:57]}  Nf8 {[%clk 0:03:02]} 11. O-O {[%clk 0:02:50]}  Ng6 {[%clk 0:03:02]} 12. Ne5 {[%clk 0:02:44]}  Nd7 {[%clk 0:02:26]} 13. Bxe7 {[%clk 0:02:32]}  Qxe7 {[%clk 0:02:27]} 14. Nxg6 {[%clk 0:02:31]}  hxg6 {[%clk 0:02:26]} 15. Rab1 {[%clk 0:02:25]}  a5 {[%clk 0:02:23]} 16. a3 {[%clk 0:02:24]}  Nf6 {[%clk 0:02:23]} 17. Na4 {[%clk 0:02:18]}  Ne4 {[%clk 0:02:15]} 18. Nb6 {[%clk 0:02:12]}  Rb8 {[%clk 0:02:14]} 19. b4 {[%clk 0:02:08]}  axb4 {[%clk 0:02:14]} 20. Rxb4 {[%clk 0:02:07]}  Qg5 {[%clk 0:02:08]} 21. Kh2 {[%clk 0:02:02]}  Bf5 {[%clk 0:02:00]} 22. Na4 {[%clk 0:01:30]}  Re7 {[%clk 0:01:56]} 23. Nc5 {[%clk 0:01:29]}  Nd6 {[%clk 0:01:40]} 24. Rfb1 {[%clk 0:01:17]}  Bxd3 {[%clk 0:01:23]} 25. Qxd3 {[%clk 0:01:17]}  b5 {[%clk 0:01:23]} 26. a4 {[%clk 0:01:16]}  Rbe8 {[%clk 0:01:20]} 27. axb5 {[%clk 0:01:15]}  cxb5 {[%clk 0:01:21]} 28. Ra1 {[%clk 0:01:09]}  Nf5 {[%clk 0:01:16]} 29. Rxb5 {[%clk 0:01:01]}  Nxe3 {[%clk 0:01:16]} 30. fxe3 {[%clk 0:00:56]}  Rxe3 {[%clk 0:01:17]} 31. Qf1 {[%clk 0:00:52]}  Qg3+ {[%clk 0:01:17]} 32. Kh1 {[%clk 0:00:37]}  Re1 {[%clk 0:01:16]} 33. Rxe1 {[%clk 0:00:33]}  Rxe1 {[%clk 0:01:17]} 34. Rb8+ {[%clk 0:00:31]}  Kh7 {[%clk 0:01:17]} 35. Qxe1 {[%clk 0:00:28]}  Qxe1+ {[%clk 0:01:18]} 36. Kh2 {[%clk 0:00:29]}  Qd2 {[%clk 0:01:04]} 37. Nb3 {[%clk 0:00:16]}  Qf4+ {[%clk 0:01:04]} 0-1


[Site "https://www.chess.com"]

[Event "Titled Tuesday Blitz December 14 2021"]
[White "Madaminov, Mukhiddin"]
[Black "Tari, Aryan"]
[WhiteFideId "14210703"]
[BlackFideId "1510045"]
[WhiteElo "1916"]
[BlackElo "2656"]
[Result "0-1"]
[Round "10"]
[TimeControl "180+1"]
[Date "2021.12.14"]
[WhiteClock "0:01:18"]
[BlackClock "0:02:20"]

1. e4 {[%clk 0:03:00]}  c6 {[%clk 0:02:59]} 2. Nf3 {[%clk 0:02:59]}  d5 {[%clk 0:02:59]} 3. Nc3 {[%clk 0:02:59]}  dxe4 {[%clk 0:02:59]} 4. Nxe4 {[%clk 0:03:00]}  Nf6 {[%clk 0:03:00]} 5. Qe2 {[%clk 0:03:00]}  Nxe4 {[%clk 0:03:00]} 6. Qxe4 {[%clk 0:03:01]}  Nd7 {[%clk 0:03:01]} 7. Bc4 {[%clk 0:03:02]}  Nf6 {[%clk 0:03:01]} 8. Ne5 {[%clk 0:03:03]}  e6 {[%clk 0:03:02]} 9. Qe2 {[%clk 0:03:03]}  b5 {[%clk 0:03:02]} 10. Bb3 {[%clk 0:03:01]}  Bd6 {[%clk 0:03:02]} 11. O-O {[%clk 0:02:59]}  O-O {[%clk 0:02:59]} 12. d4 {[%clk 0:02:52]}  Qc7 {[%clk 0:02:54]} 13. c3 {[%clk 0:02:50]}  c5 {[%clk 0:02:54]} 14. Qxb5 {[%clk 0:02:29]}  cxd4 {[%clk 0:02:46]} 15. cxd4 {[%clk 0:02:27]}  a5 {[%clk 0:02:46]} 16. Qc4 {[%clk 0:02:17]}  Qb8 {[%clk 0:02:33]} 17. Rd1 {[%clk 0:01:33]}  Ba6 {[%clk 0:02:26]} 18. Qa4 {[%clk 0:01:33]}  Bb5 {[%clk 0:02:25]} 19. Nc6 {[%clk 0:01:18]}  Qb6 {[%clk 0:02:20]} 0-1


[Site "https://www.chess.com"]

[Event "Titled Tuesday Blitz December 14 2021"]
[White "Maksimovic, Bojan"]
[Black "Dubov, Daniil"]
[WhiteFideId "14408120"]
[BlackFideId "24126055"]
[WhiteElo "2458"]
[BlackElo "2749"]
[Result "0-1"]
[Round "10"]
[TimeControl "180+1"]
[Date "2021.12.14"]
[WhiteClock "0:00:22"]
[BlackClock "0:01:41"]

1. e4 {[%clk 0:03:00]}  Nc6 {[%clk 0:03:00]} 2. Nf3 {[%clk 0:02:57]}  d5 {[%clk 0:03:01]} 3. exd5 {[%clk 0:02:56]}  Qxd5 {[%clk 0:03:01]} 4. Nc3 {[%clk 0:02:56]}  Qh5 {[%clk 0:03:02]} 5. Be2 {[%clk 0:02:51]}  Bg4 {[%clk 0:03:02]} 6. h3 {[%clk 0:02:50]}  O-O-O {[%clk 0:03:02]} 7. O-O {[%clk 0:02:49]}  Bxf3 {[%clk 0:02:59]} 8. Bxf3 {[%clk 0:02:49]}  Qg6 {[%clk 0:03:00]} 9. Bh5 {[%clk 0:02:40]}  Qf6 {[%clk 0:02:48]} 10. b4 {[%clk 0:02:23]}  g6 {[%clk 0:02:46]} 11. Bg4+ {[%clk 0:02:23]}  Kb8 {[%clk 0:02:47]} 12. b5 {[%clk 0:02:23]}  Nd4 {[%clk 0:02:47]} 13. Bb2 {[%clk 0:02:23]}  Bg7 {[%clk 0:02:42]} 14. a4 {[%clk 0:02:09]}  h5 {[%clk 0:02:42]} 15. Be2 {[%clk 0:02:08]}  Nh6 {[%clk 0:02:43]} 16. a5 {[%clk 0:01:57]}  Ng4 {[%clk 0:02:42]} 17. a6 {[%clk 0:01:12]}  Qd6 {[%clk 0:02:34]} 18. Bxg4 {[%clk 0:01:08]}  hxg4 {[%clk 0:02:34]} 19. Qxg4 {[%clk 0:01:08]}  f5 {[%clk 0:02:31]} 20. Qd1 {[%clk 0:00:47]}  Qf4 {[%clk 0:02:24]} 21. Ra4 {[%clk 0:00:39]}  Rxh3 {[%clk 0:01:42]} 22. gxh3 {[%clk 0:00:22]}  Be5 {[%clk 0:01:41]} 0-1


[Site "https://www.chess.com"]

[Event "Titled Tuesday Blitz December 14 2021"]
[White "Martins, Bruno Andre Leite"]
[Black "VesePower"]
[WhiteFideId "1942255"]
[WhiteElo "2137"]
[BlackElo "2757"]
[Result "1/2-1/2"]
[Round "10"]
[TimeControl "180+1"]
[Date "2021.12.14"]
[WhiteClock "0:00:02"]
[BlackClock "0:00:05"]

1. e4 {[%clk 0:02:41]}  c6 {[%clk 0:02:59]} 2. Nf3 {[%clk 0:02:34]}  d5 {[%clk 0:03:00]} 3. Nc3 {[%clk 0:02:35]}  Bg4 {[%clk 0:03:00]} 4. h3 {[%clk 0:02:34]}  Bxf3 {[%clk 0:03:00]} 5. Qxf3 {[%clk 0:02:35]}  e6 {[%clk 0:03:01]} 6. d4 {[%clk 0:02:36]}  dxe4 {[%clk 0:02:58]} 7. Qxe4 {[%clk 0:02:36]}  Nf6 {[%clk 0:02:58]} 8. Qh4 {[%clk 0:02:31]}  Be7 {[%clk 0:02:52]} 9. Bg5 {[%clk 0:02:29]}  Nbd7 {[%clk 0:02:49]} 10. Bd3 {[%clk 0:02:28]}  h6 {[%clk 0:02:46]} 11. O-O {[%clk 0:02:26]}  Qa5 {[%clk 0:02:46]} 12. Bd2 {[%clk 0:02:24]}  Qc7 {[%clk 0:02:34]} 13. Rad1 {[%clk 0:02:08]}  O-O-O {[%clk 0:02:33]} 14. Ne2 {[%clk 0:02:03]}  g5 {[%clk 0:02:25]} 15. Qg3 {[%clk 0:02:02]}  Bd6 {[%clk 0:02:26]} 16. Qe3 {[%clk 0:01:57]}  g4 {[%clk 0:02:21]} 17. c4 {[%clk 0:01:47]}  gxh3 {[%clk 0:02:18]} 18. Qxh3 {[%clk 0:01:48]}  c5 {[%clk 0:01:43]} 19. b4 {[%clk 0:01:43]}  b6 {[%clk 0:01:31]} 20. bxc5 {[%clk 0:01:41]}  bxc5 {[%clk 0:01:31]} 21. Rb1 {[%clk 0:01:39]}  Rhg8 {[%clk 0:01:23]} 22. Qf3 {[%clk 0:01:38]}  Nb6 {[%clk 0:01:05]} 23. Qxf6 {[%clk 0:01:35]}  cxd4 {[%clk 0:01:04]} 24. a4 {[%clk 0:01:29]}  Qc6 {[%clk 0:01:02]} 25. g3 {[%clk 0:01:25]}  Nd7 {[%clk 0:00:41]} 26. Qxd4 {[%clk 0:01:25]}  Nc5 {[%clk 0:00:38]} 27. Qe3 {[%clk 0:01:18]}  Bxg3 {[%clk 0:00:36]} 28. Nxg3 {[%clk 0:01:13]}  Rxd3 {[%clk 0:00:36]} 29. Qf4 {[%clk 0:01:13]}  e5 {[%clk 0:00:33]} 30. Qxe5 {[%clk 0:01:12]}  Nd7 {[%clk 0:00:33]} 31. Qf4 {[%clk 0:01:10]}  Rf3 {[%clk 0:00:30]} 32. Qh4 {[%clk 0:01:06]}  Ne5 {[%clk 0:00:30]} 33. Bf4 {[%clk 0:01:04]}  Rg4 {[%clk 0:00:29]} 34. Qe7 {[%clk 0:00:58]}  Rfxf4 {[%clk 0:00:25]} 35. Qxe5 {[%clk 0:00:57]}  Rd4 {[%clk 0:00:18]} 36. Qf5+ {[%clk 0:00:53]}  Kc7 {[%clk 0:00:17]} 37. Qxf7+ {[%clk 0:00:50]}  Rd7 {[%clk 0:00:18]} 38. Qe8 {[%clk 0:00:46]}  Rd8 {[%clk 0:00:16]} 39. Qxc6+ {[%clk 0:00:45]}  Kxc6 {[%clk 0:00:17]} 40. Rfe1 {[%clk 0:00:42]}  Rxc4 {[%clk 0:00:16]} 41. Re6+ {[%clk 0:00:41]}  Kd7 {[%clk 0:00:15]} 42. Rxh6 {[%clk 0:00:41]}  Rxa4 {[%clk 0:00:15]} 43. Rd1+ {[%clk 0:00:42]}  Kc8 {[%clk 0:00:15]} 44. Rc1+ {[%clk 0:00:26]}  Kb8 {[%clk 0:00:16]} 45. Rb1+ {[%clk 0:00:25]}  Ka8 {[%clk 0:00:16]} 46. Rh7 {[%clk 0:00:25]}  Rad4 {[%clk 0:00:16]} 47. Rbb7 {[%clk 0:00:23]}  Rd1+ {[%clk 0:00:16]} 48. Kg2 {[%clk 0:00:23]}  Ra1 {[%clk 0:00:17]} 49. Ne4 {[%clk 0:00:20]}  Rg8+ {[%clk 0:00:17]} 50. Ng3 {[%clk 0:00:20]}  Rd8 {[%clk 0:00:17]} 51. Rbf7 {[%clk 0:00:20]}  Ra2 {[%clk 0:00:17]} 52. Kh3 {[%clk 0:00:20]}  Kb8 {[%clk 0:00:16]} 53. f4 {[%clk 0:00:20]}  Rg8 {[%clk 0:00:14]} 54. Rfg7 {[%clk 0:00:18]}  Rxg7 {[%clk 0:00:14]} 55. Rxg7 {[%clk 0:00:18]}  Rf2 {[%clk 0:00:15]} 56. f5 {[%clk 0:00:19]}  a5 {[%clk 0:00:16]} 57. Kg4 {[%clk 0:00:18]}  a4 {[%clk 0:00:16]} 58. Re7 {[%clk 0:00:18]}  a3 {[%clk 0:00:16]} 59. Re3 {[%clk 0:00:19]}  a2 {[%clk 0:00:17]} 60. Ra3 {[%clk 0:00:19]}  Kc7 {[%clk 0:00:17]} 61. Ne4 {[%clk 0:00:18]}  Rg2+ {[%clk 0:00:18]} 62. Kf4 {[%clk 0:00:18]}  Kd7 {[%clk 0:00:17]} 63. Ke5 {[%clk 0:00:19]}  Rb2 {[%clk 0:00:17]} 64. Ra7+ {[%clk 0:00:18]}  Ke8 {[%clk 0:00:18]} 65. Ke6 {[%clk 0:00:15]}  Rb6+ {[%clk 0:00:17]} 66. Nd6+ {[%clk 0:00:15]}  Kf8 {[%clk 0:00:17]} 67. f6 {[%clk 0:00:15]}  Rb8 {[%clk 0:00:18]} 68. Rxa2 {[%clk 0:00:14]}  Rd8 {[%clk 0:00:18]} 69. Rh2 {[%clk 0:00:14]}  Kg8 {[%clk 0:00:18]} 70. f7+ {[%clk 0:00:14]}  Kg7 {[%clk 0:00:19]} 71. Rg2+ {[%clk 0:00:14]}  Kh7 {[%clk 0:00:19]} 72. Ke7 {[%clk 0:00:15]}  Ra8 {[%clk 0:00:13]} 73. f8=N+ {[%clk 0:00:14]}  Kh6 {[%clk 0:00:12]} 74. Nf5+ {[%clk 0:00:13]}  Kh5 {[%clk 0:00:13]} 75. Nd6 {[%clk 0:00:08]}  Kh4 {[%clk 0:00:13]} 76. Ne6 {[%clk 0:00:07]}  Kh3 {[%clk 0:00:13]} 77. Rg6 {[%clk 0:00:08]}  Ra1 {[%clk 0:00:13]} 78. Kf6 {[%clk 0:00:07]}  Rf1+ {[%clk 0:00:13]} 79. Nf5 {[%clk 0:00:08]}  Kh2 {[%clk 0:00:13]} 80. Nd4 {[%clk 0:00:07]}  Kh3 {[%clk 0:00:12]} 81. Ke5 {[%clk 0:00:07]}  Re1+ {[%clk 0:00:12]} 82. Kf4 {[%clk 0:00:06]}  Re8 {[%clk 0:00:05]} 83. Nf3 {[%clk 0:00:04]}  Re4+ {[%clk 0:00:05]} 84. Kxe4 {[%clk 0:00:02]} 1/2-1/2


[Site "https://www.chess.com"]

[Event "Titled Tuesday Blitz December 14 2021"]
[White "Matinian, Nikita"]
[Black "Ibrahimli, Murad"]
[WhiteFideId "24129100"]
[BlackFideId "13410229"]
[WhiteElo "2422"]
[BlackElo "2109"]
[Result "1-0"]
[Round "10"]
[TimeControl "180+1"]
[Date "2021.12.14"]
[WhiteClock "0:00:21"]
[BlackClock "0:00:06"]

1. e4 {[%clk 0:02:58]}  c5 {[%clk 0:02:58]} 2. Nc3 {[%clk 0:02:59]}  Nc6 {[%clk 0:02:57]} 3. Bb5 {[%clk 0:02:59]}  Nd4 {[%clk 0:02:57]} 4. Nf3 {[%clk 0:03:00]}  e6 {[%clk 0:02:55]} 5. O-O {[%clk 0:03:00]}  a6 {[%clk 0:02:56]} 6. Bd3 {[%clk 0:03:00]}  Nc6 {[%clk 0:02:56]} 7. Re1 {[%clk 0:03:00]}  d6 {[%clk 0:02:55]} 8. b3 {[%clk 0:03:00]}  g6 {[%clk 0:02:54]} 9. Bb2 {[%clk 0:02:58]}  Bg7 {[%clk 0:02:55]} 10. Na4 {[%clk 0:02:53]}  Bxb2 {[%clk 0:02:54]} 11. Nxb2 {[%clk 0:02:54]}  e5 {[%clk 0:02:50]} 12. a4 {[%clk 0:02:51]}  Nf6 {[%clk 0:02:41]} 13. Nc4 {[%clk 0:02:44]}  Be6 {[%clk 0:02:32]} 14. Ng5 {[%clk 0:02:39]}  Bg4 {[%clk 0:02:32]} 15. Be2 {[%clk 0:02:30]}  Bxe2 {[%clk 0:01:42]} 16. Qxe2 {[%clk 0:02:31]}  Nh5 {[%clk 0:01:40]} 17. Nh3 {[%clk 0:02:19]}  O-O {[%clk 0:01:33]} 18. c3 {[%clk 0:02:18]}  Qe7 {[%clk 0:01:29]} 19. Nb6 {[%clk 0:02:16]}  Rad8 {[%clk 0:01:29]} 20. Nd5 {[%clk 0:02:16]}  Qh4 {[%clk 0:01:29]} 21. Qe3 {[%clk 0:02:05]}  Ne7 {[%clk 0:01:06]} 22. Nxe7+ {[%clk 0:01:34]}  Qxe7 {[%clk 0:01:07]} 23. d4 {[%clk 0:01:35]}  cxd4 {[%clk 0:01:05]} 24. cxd4 {[%clk 0:01:35]}  Kg7 {[%clk 0:01:02]} 25. Rac1 {[%clk 0:01:34]}  Rc8 {[%clk 0:01:02]} 26. d5 {[%clk 0:01:27]}  h6 {[%clk 0:01:01]} 27. g4 {[%clk 0:01:17]}  Nf6 {[%clk 0:01:00]} 28. f3 {[%clk 0:01:17]}  h5 {[%clk 0:00:59]} 29. g5 {[%clk 0:01:07]}  Nh7 {[%clk 0:00:59]} 30. a5 {[%clk 0:01:07]}  Qd7 {[%clk 0:00:53]} 31. Kg2 {[%clk 0:01:03]}  Qb5 {[%clk 0:00:53]} 32. Qb6 {[%clk 0:01:00]}  Qxb6 {[%clk 0:00:27]} 33. axb6 {[%clk 0:01:00]}  Rfd8 {[%clk 0:00:28]} 34. Kg3 {[%clk 0:00:52]}  Nf8 {[%clk 0:00:28]} 35. Rc7 {[%clk 0:00:49]}  Rxc7 {[%clk 0:00:20]} 36. bxc7 {[%clk 0:00:50]}  Rc8 {[%clk 0:00:21]} 37. Rc1 {[%clk 0:00:50]}  Nd7 {[%clk 0:00:22]} 38. b4 {[%clk 0:00:48]}  Nb6 {[%clk 0:00:22]} 39. f4 {[%clk 0:00:48]}  exf4+ {[%clk 0:00:19]} 40. Kxf4 {[%clk 0:00:47]}  Na8 {[%clk 0:00:20]} 41. e5 {[%clk 0:00:29]}  dxe5+ {[%clk 0:00:21]} 42. Ke4 {[%clk 0:00:29]}  Rxc7 {[%clk 0:00:15]} 43. Rxc7 {[%clk 0:00:29]}  Nxc7 {[%clk 0:00:16]} 44. Kxe5 {[%clk 0:00:26]}  Kf8 {[%clk 0:00:14]} 45. Nf4 {[%clk 0:00:26]}  b6 {[%clk 0:00:09]} 46. d6 {[%clk 0:00:21]}  Ne6 {[%clk 0:00:06]} 47. Nxe6+ {[%clk 0:00:21]}  fxe6 {[%clk 0:00:07]} 48. Kf6 {[%clk 0:00:20]}  Ke8 {[%clk 0:00:07]} 49. Kxg6 {[%clk 0:00:21]}  a5 {[%clk 0:00:06]} 50. Kf6 {[%clk 0:00:20]}  a4 {[%clk 0:00:06]} 51. g6 {[%clk 0:00:21]} 1-0


[Site "https://www.chess.com"]

[Event "Titled Tuesday Blitz December 14 2021"]
[White "Moroni, Luca Jr"]
[Black "Andreikin, Dmitry"]
[WhiteFideId "865834"]
[BlackFideId "4158814"]
[WhiteElo "2491"]
[BlackElo "2736"]
[Result "0-1"]
[Round "10"]
[TimeControl "180+1"]
[Date "2021.12.14"]
[WhiteClock "0:00:01"]
[BlackClock "0:00:13"]

1. d4 {[%clk 0:03:00]}  g6 {[%clk 0:03:00]} 2. e4 {[%clk 0:03:00]}  Bg7 {[%clk 0:03:00]} 3. Nc3 {[%clk 0:03:00]}  c6 {[%clk 0:02:59]} 4. h4 {[%clk 0:02:59]}  Qb6 {[%clk 0:02:55]} 5. Nf3 {[%clk 0:02:54]}  d6 {[%clk 0:02:54]} 6. h5 {[%clk 0:02:51]}  Bg4 {[%clk 0:02:52]} 7. hxg6 {[%clk 0:02:51]}  hxg6 {[%clk 0:02:51]} 8. Rxh8 {[%clk 0:02:51]}  Bxh8 {[%clk 0:02:52]} 9. Ne2 {[%clk 0:02:37]}  Nf6 {[%clk 0:02:41]} 10. Qd3 {[%clk 0:02:37]}  Na6 {[%clk 0:02:34]} 11. c3 {[%clk 0:02:34]}  O-O-O {[%clk 0:02:33]} 12. Ng5 {[%clk 0:02:29]}  Rf8 {[%clk 0:02:29]} 13. f3 {[%clk 0:02:26]}  Bd7 {[%clk 0:02:28]} 14. b4 {[%clk 0:02:25]}  c5 {[%clk 0:02:04]} 15. bxc5 {[%clk 0:02:04]}  dxc5 {[%clk 0:02:03]} 16. Rb1 {[%clk 0:02:04]}  Qa5 {[%clk 0:02:00]} 17. Kf2 {[%clk 0:01:55]}  Ne8 {[%clk 0:01:45]} 18. Bf4 {[%clk 0:01:44]}  Qxa2 {[%clk 0:01:38]} 19. Kg1 {[%clk 0:01:18]}  Nec7 {[%clk 0:01:12]} 20. Nc1 {[%clk 0:01:14]}  Qa3 {[%clk 0:01:08]} 21. Nb3 {[%clk 0:01:08]}  c4 {[%clk 0:00:49]} 22. Qxc4 {[%clk 0:00:58]}  Bb5 {[%clk 0:00:48]} 23. Qxb5 {[%clk 0:00:52]}  Nxb5 {[%clk 0:00:48]} 24. Bxb5 {[%clk 0:00:53]}  Qa2 {[%clk 0:00:43]} 25. Nd2 {[%clk 0:00:43]}  Nc7 {[%clk 0:00:36]} 26. Bc4 {[%clk 0:00:40]}  Qc2 {[%clk 0:00:35]} 27. Nxf7 {[%clk 0:00:29]}  Qxc3 {[%clk 0:00:33]} 28. Kh2 {[%clk 0:00:11]}  Bxd4 {[%clk 0:00:27]} 29. Rb3 {[%clk 0:00:11]}  Qc1 {[%clk 0:00:25]} 30. Rd3 {[%clk 0:00:09]}  Qg1+ {[%clk 0:00:21]} 31. Kh3 {[%clk 0:00:10]}  b5 {[%clk 0:00:16]} 32. Bb3 {[%clk 0:00:03]}  Qh1+ {[%clk 0:00:16]} 33. Kg3 {[%clk 0:00:03]}  Qe1+ {[%clk 0:00:15]} 34. Kh3 {[%clk 0:00:02]}  Bf2 {[%clk 0:00:15]} 35. Bxc7 {[%clk 0:00:01]}  Kxc7 {[%clk 0:00:13]} 0-1


[Site "https://www.chess.com"]